[Event "III Menorca Open-A 2024"]
[Site "Ciutadella Menorca"]
[Date "2024.04.03"]
[Round "2.17"]
[White "Moehn, Hans"]
[Black "Idani, Pouya"]
[Result "*"]
[ECO "D02"]
[WhiteElo "2396"]
[BlackElo "2609"]
[Annotator "ChessBase"]
[PlyCount "60"]
[EventDate "2024.04.02"]
[EventType "swiss"]
[EventCountry "ESP"]
[SourceTitle "playchess.com"]
[Source "ChessBase"]
[SourceQuality "1"]
[TimeControl "5400+30"]

1. Nf3 {[%emt 0:00:05]} d5 {[%emt 0:01:39]} 2. g3 {[%emt 0:00:07]} Nc6 {[%emt 0:00:05]} 3. d4 {[%emt 0:00:18]} Bf5 {[%emt 0:00:04]} 4. Bg2 {[%emt 0:01:28]} Nb4 {[%emt 0:00:05]} 5. Na3 {[%emt 0:00:35]} e6 {[%emt 0:00:06]} 6. c3 {[%emt 0:00:49]} Nc6 {[%emt 0:00:05]} 7. Qa4 {[%emt 0:02:03]} a6 {[%emt 0:09:46]} 8. Ne5 {[%emt 0:08:58]} b5 {[%emt 0:03:25]} 9. Nxc6 {[%emt 0:02:32]} bxa4 {[%emt 0:00:04]} 10. Nxd8 {[%emt 0:00:15]} Rxd8 {[%emt 0:00:03]} 11. e4 {[%emt 0:04:06]} Bxe4 {[%emt 0:02:54]} 12. Bxe4 {[%emt 0:02:29]} dxe4 {[%emt 0:00:04]} 13. Nc4 {[%emt 0:01:05]} Nf6 {[%emt 0:11:36]} 14. b4 {[%emt 0:13:31]} Nd5 {[%emt 0:09:02]} 15. Bb2 {[%emt 0:03:02]} a3 {[%emt 0:20:43]} 16. Nxa3 {[%emt 0:01:56]} a5 {[%emt 0:00:03]} 17. Nc2 {[%emt 0:25:07]} axb4 {[%emt 0:00:05]} 18. c4 {[%emt 0:00:25]} Nb6 {[%emt 0:00:29]} 19. c5 {[%emt 0:00:41]} Nc4 {[%emt 0:05:47]} 20. O-O-O {[%emt 0:00:24]} Rb8 {[%emt 0:08:03]} 21. Na1 {[%emt 0:03:53]} Kd7 {[%emt 0:06:05]} 22. Rhe1 {[%emt 0:01:34]} f5 {[%emt 0:00:11]} 23. Nb3 {[%emt 0:00:15]} Be7 {[%emt 0:02:46]} 24. f3 {[%emt 0:10:50]} exf3 {[%emt 0:02:17]} 25. d5 {[%emt 0:01:01]} Bg5+ {[%emt 0:03:38]} 26. Kb1 {[%emt 0:00:54]} e5 {[%emt 0:00:41]} 27. Rxe5 {[%emt 0:11:53]} Nxb2 {[%emt 0:02:02]} 28. c6+ {[%emt 0:00:05]} Kd8 {[%emt 0:00:14]} 29. Rf1 {[%emt 0:00:04]} Nc4 {[%emt 0:00:51]} 30. Re6 {[%emt 0:00:55]} Rb5 {[%emt 0:01:52]} *

[Event "III Menorca Open-A 2024"]
[Site "Ciutadella Menorca"]
[Date "2024.04.03"]
[Round "2.17"]
[White "Moehn, Hans"]
[Black "Idani, Pouya"]
[Result "0-1"]
[ECO "D02"]
[WhiteElo "2396"]
[BlackElo "2609"]
[Annotator "TA"]
[PlyCount "60"]
[EventDate "2024.04.02"]
[EventType "swiss"]
[EventCountry "ESP"]
[SourceTitle "playchess.com"]
[Source "ChessBase"]
[SourceQuality "1"]
[TimeControl "5400+30"]

{[%evp 9,60,22,24,8,17,12,0,-11,18,0,0,16,23,-38,-39,-39,-41,-41,-60,-49,-43,-81,-51,-45,-47,-131,-122,-150,-140,-139,-85,-127,-121,-207,-169,-208,-208,-230,-220,-291,-300,-491,-484,-490,-489,-666,-655,-688,-667,-667,-654,-849,-829]} 1. Nf3 {[%emt 0:00:05]} d5 {[%emt 0:01:39]} 2. g3 {[%emt 0:00:07]} Nc6 {[%emt 0:00:05]} 3. d4 {[%emt 0:00:18]} Bf5 {[%emt 0:00:04]} 4. Bg2 {[%emt 0:01:28]} Nb4 {[%emt 0:00:05]} 5. Na3 {[%emt 0:00:35]} e6 {[%emt 0:00:06]} 6. c3 {[%emt 0:00:49]} Nc6 {[%emt 0:00:05]} 7. Qa4 {[%emt 0:02:03]} a6 {[%emt 0:09:46]} 8. Ne5 {[%emt 0:08:58] The position is equal.} b5 {[%emt 0:03:25]} 9. Nxc6 {[%emt 0:02:32]} bxa4 {[%emt 0:00:04]} 10. Nxd8 {[%emt 0:00:15]} Rxd8 {[%emt 0:00:03] [#]} 11. e4 {[%emt 0:04:06]} Bxe4 $15 {[%emt 0:02:54]} 12. Bxe4 {[%emt 0:02:29]} dxe4 {[%emt 0:00:04]} 13. Nc4 {[%emt 0:01:05]} Nf6 {[%emt 0:11:36]} 14. b4 {[%emt 0:13:31]} Nd5 {[%emt 0:09:02]} 15. Bb2 {[%emt 0:03:02]} a3 {[%emt 0:20:43]} 16. Nxa3 {[%emt 0:01:56]} a5 {[%emt 0:00:03]} 17. Nc2 {[%emt 0:25:07]} (17. bxa5 $15 Bxa3 18. Bxa3) 17... axb4 $17 {[%emt 0:00:05] Black is more active.} 18. c4 {[%emt 0:00:25]} Nb6 {[%emt 0:00:29]} 19. c5 {[%emt 0:00:41]} Nc4 {[%emt 0:05:47]} (19... Nd5 $142 20. O-O Be7) 20. O-O-O {[%emt 0:00:24]} Rb8 {[%emt 0:08:03]} 21. Na1 {[%emt 0:03:53]} (21. Rhe1 $17) 21... Kd7 {[%emt 0:06:05]} 22. Rhe1 {[%emt 0:01:34]} f5 {[%emt 0:00:11]} 23. Nb3 {[%emt 0:00:15]} Be7 {[%emt 0:02:46]} 24. f3 {[%emt 0:10:50]} exf3 {[%emt 0:02:17]} 25. d5 $2 {[%emt 0:01:01]} (25. Rd3) 25... Bg5+ $19 {[%emt 0:03:38] Black is clearly winning.} 26. Kb1 {[%emt 0:00:54] [#]} e5 {[%emt 0:00:41]} 27. Rxe5 {[%emt 0:11:53]} (27. Bxe5 f2) 27... Nxb2 {[%emt 0:02:02]} 28. c6+ {[%emt 0:00:05]} Kd8 {[%emt 0:00:14]} 29. Rf1 {[%emt 0:00:04]} Nc4 {[%emt 0:00:51]} 30. Re6 {[%emt 0:00:55]} Rb5 {[%emt 0:01:52] Weighted Error Value: White=0.55/Black=0.07 (flawless) .  Mistake:       	White=4     	Black=1      Inaccurate:     	White=4     	Black=2      OK:         	White=6     	Black=11     Best:        	White=1     	Black=2} 0-1

[Event "III Menorca Open-A 2024"]
[Site "Ciutadella Menorca"]
[Date "2024.04.03"]
[Round "2.18"]
[White "Jumabayev, Rinat"]
[Black "Montoliu Cervero, Francisco"]
[Result "1/2-1/2"]
[ECO "D15"]
[WhiteElo "2598"]
[BlackElo "2393"]
[Annotator "TA"]
[PlyCount "141"]
[EventDate "2024.04.02"]
[EventType "swiss"]
[EventCountry "ESP"]
[SourceTitle "playchess.com"]
[Source "ChessBase"]
[SourceQuality "1"]
[TimeControl "5400+30"]

{[%evp 10,141,39,41,54,39,47,46,55,62,55,48,59,51,81,57,63,64,51,29,65,44,55,32,37,51,52,50,56,58,64,58,112,24,37,33,38,20,50,36,56,18,19,15,21,0,0,0,8,0,8,5,20,7,6,5,13,10,72,77,83,0,43,41,34,33,37,20,20,0,33,0,0,0,34,30,59,7,9,-32,-30,-52,-50,-54,-49,-46,-48,-126,-124,-133,-54,-143,-132,-121,-138,-270,-286,-296,-293,-287,-273,-274,-247,-260,-148,-5365,0,-37,0,-60,0,-14,0,-83,-91,-90,-28,-28,0,0,0,0,0,0,0,-29994,0,-91,-62,-91,-81,-246,-133,-133]} 1. d4 {[%emt 0:00:01]} d5 {[%emt 0:00:10]} 2. c4 {[%emt 0:00:06]} c6 {[%emt 0:00:15]} 3. Nf3 {[%emt 0:00:10]} Nf6 {[%emt 0:00:14]} 4. Nc3 {[%emt 0:00:05]} a6 {[%emt 0:00:44]} 5. c5 {[%emt 0:00:37]} Bf5 {[%emt 0:04:08]} 6. Qb3 {[%emt 0:07:02]} Qc8 {[%emt 0:00:31]} 7. Nh4 {[%emt 0:12:09]} Bg6 {[%emt 0:14:41]} 8. Bf4 {[%emt 0:08:13]} Nbd7 {[%emt 0:13:31][%cal Oe7e5] White is slightly better.} 9. Na4 {[%emt 0:08:50]} Nh5 {[%emt 0:11:11]} 10. Bd2 {[%emt 0:00:45]} Qc7 {[%emt 0:03:05]} 11. g3 {[%emt 0:02:33]} e6 {[%emt 0:04:39]} 12. Bg2 {[%emt 0:01:19] White is more active.} Be7 {[%emt 0:00:37]} 13. Nxg6 {[%emt 0:00:10]} hxg6 {[%emt 0:00:04]} 14. O-O {[%emt 0:04:12]} O-O {[%emt 0:14:48]} 15. Rad1 {[%emt 0:11:04]} Rad8 {[%emt 0:06:02]} 16. e4 {[%emt 0:07:27]} dxe4 {[%emt 0:00:55]} 17. Bxe4 {[%emt 0:00:54]} Ndf6 {[%emt 0:01:03]} 18. Bf3 {[%emt 0:00:25]} Nd5 {[%emt 0:02:45]} (18... Rxd4 $6 19. Ba5 Qxa5 20. Rxd4 Bxc5 21. Rc4 Bxf2+ 22. Rxf2 $18 (22. Kxf2 b5 $18)) 19. Rfe1 {[%emt 0:00:49]} Bf6 {[%emt 0:03:17]} 20. Re4 {[%emt 0:01:10]} Rfe8 {[%emt 0:03:27]} (20... Be7 $14) 21. Rde1 {[%emt 0:04:36]} (21. Nb6 $16) 21... Be7 {[%emt 0:00:54]} 22. Qc4 {[%emt 0:00:51]} Nhf6 {[%emt 0:01:16]} 23. R4e2 {[%emt 0:00:03]} Kf8 {[%emt 0:03:29]} 24. Kg2 {[%emt 0:05:38]} Ng8 {[%emt 0:02:23]} 25. h4 {[%emt 0:09:41]} Bf6 {[%emt 0:01:46]} 26. Nc3 {[%emt 0:02:51]} Nge7 {[%emt 0:01:03]} 27. Ne4 {[%emt 0:01:27]} Nf5 {[%emt 0:01:30]} 28. Nxf6 {[%emt 0:00:54]} Nxf6 {[%emt 0:06:02] A dynamic duo of knights.} 29. Bc3 {[%emt 0:02:49]} Nd5 {[%emt 0:00:00]} 30. Re5 {[%emt 0:00:40]} Re7 {[%emt 0:00:00]} 31. Qa4 {[%emt 0:01:02]} Qb8 {[%emt 0:00:00]} 32. Rh1 {[%emt 0:05:42]} Red7 {[%emt 0:00:00]} 33. Ree1 {[%emt 0:02:10]} Nc7 {[%emt 0:00:00]} (33... Re8 $11) 34. h5 $16 {[%emt 0:00:18]} g5 {[%emt 0:01:12][%cal Oc7b5]} 35. Re4 {[%emt 0:00:35]} (35. Qc2 $16) 35... Nd5 {[%emt 0:00:16]} 36. Rg4 {[%emt 0:00:32]} f6 {[%emt 0:01:29][%cal Bf7f6,Bf6f5][%mdl 32]} 37. Re4 {[%emt 0:00:21]} Re8 {[%emt 0:00:27]} 38. Rhe1 {[%emt 0:00:20]} Rde7 {[%emt 0:00:37]} 39. Bg4 {[%emt 0:00:36]} Qc8 {[%emt 0:00:44]} 40. Qc2 {[%emt 0:00:28][%cal Oe4e6]} Nh6 {[%emt 0:00:13] Threatens to win with ...f5.} 41. Bd1 {[%emt 0:00:20]} f5 {[%emt 0:00:21]} 42. R4e2 {[%emt 0:00:56]} Nf6 {[%emt 0:00:33]} 43. Qd2 {[%emt 0:00:31]} (43. Bd2 $14) 43... Nf7 $11 {[%emt 0:00:12]} 44. Bb3 {[%emt 0:00:27]} Nxh5 {[%emt 0:00:25]} 45. Rh1 {[%emt 0:00:07]} Nf6 {[%emt 0:02:01]} 46. Bc4 {[%emt 0:00:52]} Qd7 {[%emt 0:00:00]} 47. Qd3 {[%emt 0:00:27]} Nd5 {[%emt 0:00:00]} 48. Bd2 {[%emt 0:00:41]} (48. f3 $15) 48... e5 $1 $17 {[%emt 0:00:18]} 49. dxe5 {[%emt 0:00:33]} Nxe5 {[%emt 0:00:42]} (49... Rxe5 $17 50. Rxe5 Nxe5) 50. Rh8+ {[%emt 0:00:25]} (50. Bxd5 $1 $15 cxd5 (50... Nxd3 51. Rh8#) 51. Qb3) 50... Kf7 {[%emt 0:00:01]} 51. Rxe8 {[%emt 0:00:34]} Rxe8 {[%emt 0:00:13]} 52. Bxd5+ {[%emt 0:00:26]} (52. Qd4 $17 Nxc4 53. Qxc4) 52... cxd5 $19 {[%emt 0:00:32]} 53. Qb3 {[%emt 0:00:27]} g4 {[%emt 0:00:35]} 54. Bf4 {[%emt 0:00:38]} Nf3 {[%emt 0:00:22]} 55. Rxe8 {[%emt 0:00:18]} Kxe8 {[%emt 0:00:01][%mdl 4096] Endgame. KQB-KQN} 56. Bd6 {[%emt 0:00:25]} Qf7 {[%emt 0:01:34]} (56... g5 $19 {White must now prevent ...Qh7.} 57. c6 (57. Qxd5 Qh7 $19) 57... bxc6 (57... Qxd6 58. cxb7 Qb8 59. Qxd5 $11) (57... Qxc6 58. Qe3+ Kf7 59. Qe7+ Kg6 60. Qe6+ Kg7 61. Qe7+ Kg6 62. Qe6+ Kg7 63. Qe7+ Kg6 $11)) 57. c6 $2 {[%emt 0:00:45][%mdl 8192] [#]} (57. Qa4+ $17 Qd7 58. Qb3) 57... bxc6 $2 {[%emt 0:00:02]} (57... Qh5 $1 $19 {[%csl Gg4][%cal Rh5h3]} 58. Qe3+ Kf7 59. Qe7+ Kg8 60. Qd8+ Kh7) 58. Qb8+ $11 {[%emt 0:00:32]} Kd7 {[%emt 0:00:01]} 59. Bc5 {[%emt 0:00:29]} ({Better is} 59. Bb4 $11) 59... Qf6 {[%emt 0:02:00]} (59... Qe6 $15 60. Qb7+ Ke8 61. Qxg7 d4) 60. Qb7+ {[%emt 0:00:23]} Ke8 {[%emt 0:00:02] ...a5 is the strong threat.} 61. Qxa6 {[%emt 0:00:17]} (61. a4 $1 $11 {was the only way to keep the balance.}) 61... Kf7 {[%emt 0:00:41][%cal Of7g8] Strongly threatening ...Kg8!} (61... Qxb2 $6 62. Qxc6+ Kf7 63. Qxd5+ Kg6 64. Qe6+ Qf6 65. Qxf6+ Kxf6 66. a4 $11) 62. Qc8 {[%emt 0:00:09]} Kg6 {[%emt 0:00:25]} (62... Qxb2 $6 63. Qxf5+ (63. Qxc6 Qe5 $17) 63... Qf6 64. Qd7+ (64. Qxg4 Ne5 $11) 64... Kg8 65. Qe8+ (65. Qxg4 Ne1+ 66. Kf1 Nc2 $11) 65... Kh7 66. Qh5+ Kg8 67. Qxg4 Ne1+ 68. Kf1 $11) (62... Qe6 $1 $17 {[%cal Re6c8]} 63. Qxe6+ Kxe6) 63. Qe8+ $1 {[%emt 0:00:33]} Kh7 {[%emt 0:00:13][%cal Of6h6]} (63... Qf7 {simplifies} 64. Qxf7+ Kxf7 65. a4 Ke6) 64. Qh5+ {[%emt 0:00:09]} Kg8 {[%emt 0:00:15]} 65. Qe8+ {[%emt 0:00:18]} Kh7 {[%emt 0:00:01][%cal Of6h6]} 66. Qh5+ {[%emt 0:00:11]} Kg8 {[%emt 0:00:01]} 67. Qh8+ $2 {[%emt 0:02:32][%mdl 8192]} Kf7 $2 {[%emt 0:03:01]} (67... Kxh8 {mates} 68. Kf1 Qxb2 69. Be3 Qc2 (69... Qxa2 {leads to mate.} 70. Kg2 Qe2 71. Bd4 Qe1 72. Bxg7+ Kh7 73. Bf8 Qg1#) 70. Bd2 Qd1+ (70... Nxd2+ 71. Kg2 Nf3 72. a3 Qc1 73. a4 Qg1#) 71. Be1 Qxe1+ 72. Kg2 Qg1#) 68. Qc8 {[%emt 0:00:30]} (68. Qf8+ $11 {keeps the balance.} Kg6 69. a4 Qxb2 70. Qe8+ Kh7 71. Qh5+ Kg8 72. Qxf5) 68... Qe6 $17 ({Much weaker is} 68... Qxb2 $6 69. Qxf5+ (69. Qxc6 Qe5 $15) 69... Qf6 70. Qxg4 Ne1+ 71. Kg1 Nf3+ 72. Kg2 $11) 69. Qf8+ {[%emt 0:00:30]} Kg6 {[%emt 0:01:00] ( -> ...Qe1)} 70. Be7 $2 {[%emt 0:00:30] [#]} (70. Qd6 $17 Qxd6 71. Bxd6) 70... Kh7 {[%emt 0:00:30]} ({Black should play} 70... Ne5 $1 $19 71. Bd6 Nd3) 71. Qe8 {[%emt 0:00:30] Weighted Error Value: White=0.28 (precise) /Black=0.30.  Loses game:     	White=3     	---        Missed win:     	---       	Black=2      Mistake:       	White=9     	Black=7      Inaccurate:     	White=3     	Black=8      OK:         	White=19    	Black=17     Best:        	White=8     	Black=6      Strong:       	White=1     	Black=1} 1/2-1/2

[Event "III Menorca Open-A 2024"]
[Site "Ciutadella Menorca"]
[Date "2024.04.03"]
[Round "2.19"]
[White "Sanal, Vahap"]
[Black "Niedbala, Bartlomiej"]
[Result "1/2-1/2"]
[ECO "C00"]
[WhiteElo "2565"]
[BlackElo "2389"]
[Annotator "RC"]
[PlyCount "86"]
[EventDate "2024.04.02"]
[EventType "swiss"]
[EventCountry "ESP"]
[SourceTitle "playchess.com"]
[Source "ChessBase"]
[SourceQuality "1"]
[TimeControl "5400+30"]

1. e4 {[%emt 0:00:03]} c5 {[%emt 0:01:07]} 2. Nf3 {[%emt 0:00:21]} e6 {[%emt 0:00:02]} 3. d3 {[%emt 0:00:38]} d5 {[%emt 0:00:08]} 4. Qe2 {[%emt 0:00:07]} Nf6 {[%emt 0:00:03]} 5. g3 {[%emt 0:00:19]} Be7 {[%emt 0:00:01]} 6. Bg2 {[%emt 0:00:11]} b5 {[%emt 0:00:22]} 7. O-O {[%emt 0:01:18]} Nc6 {[%emt 0:03:17]} 8. Re1 {[%emt 0:06:07]} O-O {[%emt 0:06:37]} 9. e5 {[%emt 0:00:28]} Nd7 {[%emt 0:00:09]} 10. h4 {[%emt 0:00:13]} a5 {[%emt 0:01:19]} 11. Nbd2 {[%emt 0:03:44]} a4 {[%emt 0:01:23]} 12. Nf1 {[%emt 0:00:16]} a3 {[%emt 0:07:27]} 13. c3 {[%emt 0:13:13]} axb2 {[%emt 0:02:49]} 14. Bxb2 {[%emt 0:00:14]} Nb6 {[%emt 0:08:08]} 15. h5 {[%emt 0:01:32]} h6 {[%emt 0:04:24]} 16. Bc1 {[%emt 0:01:00]} c4 {[%emt 0:02:18]} 17. Be3 {[%emt 0:15:48]} cxd3 {[%emt 0:03:14]} 18. Qxd3 {[%emt 0:00:13]} Nc4 {[%emt 0:00:01]} 19. Bf4 {[%emt 0:02:24]} b4 {[%emt 0:05:45]} 20. Nd4 {[%emt 0:17:57]} Nxd4 {[%emt 0:01:29]} 21. cxd4 {[%emt 0:02:00]} Ra3 {[%emt 0:03:38]} 22. Qe2 {[%emt 0:00:52]} Bd7 {[%emt 0:04:59]} 23. Ne3 {[%emt 0:04:02]} Bb5 {[%emt 0:02:16]} 24. Qg4 {[%emt 0:00:33]} Kh8 {[%emt 0:00:46]} 25. Nc2 {[%emt 0:05:06]} Rc3 {[%emt 0:06:55]} 26. Ne3 {[%emt 0:00:28]} Qa5 {[%emt 0:03:38]} 27. Rab1 {[%emt 0:08:48]} Ra3 {[%emt 0:02:44]} 28. Nxd5 {[%emt 0:05:32]} exd5 {[%emt 0:00:28]} 29. Bxd5 {[%emt 0:00:06]} Nb6 {[%emt 0:01:34]} 30. Bg2 {[%emt 0:01:57]} Bd7 {[%emt 0:01:44]} 31. e6 {[%emt 0:00:52]} Bxe6 {[%emt 0:06:45]} 32. Rxe6 {[%emt 0:00:13]} fxe6 {[%emt 0:00:03]} 33. Be5 {[%emt 0:01:46]} Bg5 {[%emt 0:03:11]} 34. Qxe6 {[%emt 0:00:54]} Qa7 {[%emt 0:07:45]} 35. Rxb4 {[%emt 0:03:04]} Ra6 {[%emt 0:00:20]} 36. Bf1 {[%emt 0:01:01]} Rxa2 {[%emt 0:01:07]} 37. f4 {[%emt 0:01:26]} Nd7 {[%emt 0:07:05]} 38. Bxg7+ {[%emt 0:01:33]} Kxg7 {[%emt 0:00:01]} 39. fxg5 {[%emt 0:00:01]} Ra1 {[%emt 0:03:29]} 40. Qg6+ {[%emt 0:01:15]} Kh8 {[%emt 0:00:01]} 41. Qxh6+ {[%emt 0:00:07]} Kg8 {[%emt 0:00:02]} 42. Qg6+ {[%emt 0:00:09]} Kh8 {[%emt 0:00:02]} 43. Qh6+ {[%emt 0:00:09]} Kg8 {[%emt 0:00:02]} 1/2-1/2

[Event "III Menorca Open-A 2024"]
[Site "Ciutadella Menorca"]
[Date "2024.04.03"]
[Round "2.20"]
[White "Wegener, Olaf"]
[Black "Alonso Rosell, Alvar"]
[Result "1/2-1/2"]
[ECO "C70"]
[WhiteElo "2391"]
[BlackElo "2562"]
[Annotator "RC"]
[PlyCount "56"]
[EventDate "2024.04.02"]
[EventType "swiss"]
[EventCountry "ESP"]
[SourceTitle "playchess.com"]
[Source "ChessBase"]
[SourceQuality "1"]
[TimeControl "5400+30"]

1. e4 {[%emt 0:00:02]} e5 {[%emt 0:01:03]} 2. Nf3 {[%emt 0:00:06]} Nc6 {[%emt 0:00:03]} 3. Bb5 {[%emt 0:00:06]} a6 {[%emt 0:00:04]} 4. Ba4 {[%emt 0:00:05]} Nge7 {[%emt 0:00:06]} 5. c3 {[%emt 0:00:53]} Ng6 {[%emt 0:00:31]} 6. d4 {[%emt 0:01:07]} exd4 {[%emt 0:01:40]} 7. cxd4 {[%emt 0:00:25]} Bb4+ {[%emt 0:00:06]} 8. Bd2 {[%emt 0:07:27]} O-O {[%emt 0:00:17]} 9. O-O {[%emt 0:01:07]} Bxd2 {[%emt 0:02:35]} 10. Nbxd2 {[%emt 0:04:52]} d6 {[%emt 0:12:06]} 11. Rc1 {[%emt 0:05:59]} Bd7 {[%emt 0:00:55]} 12. d5 {[%emt 0:05:08]} Nce5 {[%emt 0:02:25]} 13. Nxe5 {[%emt 0:01:21]} Nxe5 {[%emt 0:01:06]} 14. Bxd7 {[%emt 0:02:27]} Nxd7 {[%emt 0:02:57]} 15. Qc2 {[%emt 0:01:17]} Rc8 {[%emt 0:00:07]} 16. Nb3 {[%emt 0:04:03]} Re8 {[%emt 0:09:08]} 17. Rfe1 {[%emt 0:00:06]} c5 {[%emt 0:15:12]} 18. dxc6 {[%emt 0:00:33]} Rxc6 {[%emt 0:03:56]} 19. Qd2 {[%emt 0:16:53]} Rxc1 {[%emt 0:02:06]} 20. Qxc1 {[%emt 0:00:22]} Nf6 {[%emt 0:01:10]} 21. f3 {[%emt 0:02:02]} d5 {[%emt 0:13:46]} 22. e5 {[%emt 0:02:23]} Nd7 {[%emt 0:01:31]} 23. f4 {[%emt 0:02:42]} f6 {[%emt 0:06:10]} 24. Qd2 {[%emt 0:02:49]} Nf8 {[%emt 0:03:31]} 25. Nd4 {[%emt 0:03:43]} fxe5 {[%emt 0:03:18]} 26. fxe5 {[%emt 0:14:55]} Ne6 {[%emt 0:08:04]} 27. Nxe6 {[%emt 0:05:00]} Rxe6 {[%emt 0:00:01]} 28. h3 {[%emt 0:00:11]} d4 {[%emt 0:10:36]} 1/2-1/2

[Event "III Menorca Open-A 2024"]
[Site "Ciutadella Menorca"]
[Date "2024.04.03"]
[Round "2.21"]
[White "Cuenca Jimenez, Jose Fernando"]
[Black "Blom, Vincent"]
[Result "1-0"]
[ECO "E18"]
[WhiteElo "2500"]
[BlackElo "2295"]
[Annotator "TA"]
[PlyCount "61"]
[EventDate "2024.04.02"]
[EventType "swiss"]
[EventCountry "ESP"]
[SourceTitle "playchess.com"]
[Source "ChessBase"]
[SourceQuality "1"]
[TimeControl "5400+30"]

{[%evp 16,61,22,22,34,33,46,34,44,39,80,70,79,79,84,86,90,82,146,132,171,166,183,170,163,154,183,188,166,176,181,179,220,120,254,208,265,264,277,264,454,400,454,462,434,416,568,563]} 1. d4 {[%emt 0:00:09]} Nf6 {[%emt 0:00:17]} 2. c4 {[%emt 0:00:50]} e6 {[%emt 0:00:10]} 3. Nf3 {[%emt 0:00:21]} b6 {[%emt 0:00:32]} 4. g3 {[%emt 0:00:48]} Bb7 {[%emt 0:00:09]} 5. Bg2 {[%emt 0:00:08]} Be7 {[%emt 0:01:01]} 6. O-O {[%emt 0:00:15]} O-O {[%emt 0:00:08]} 7. Nc3 {[%emt 0:00:12]} Ne4 {[%emt 0:02:41]} 8. Bd2 {[%emt 0:00:34]} Nxd2 {[%emt 0:09:23]} 9. Qxd2 {[%emt 0:01:09]} Bb4 {[%emt 0:09:02]} 10. Rad1 {[%emt 0:15:49]} f5 {[%emt 0:21:31]} 11. d5 {[%emt 0:14:07]} Qf6 {[%emt 0:06:42] White is slightly better.} 12. Nd4 {[%emt 0:02:33]} e5 {[%emt 0:04:24] [#]} 13. Ndb5 {[%emt 0:02:31]} Na6 {[%emt 0:13:22]} 14. a3 {[%emt 0:05:12]} Bxc3 {[%emt 0:01:55]} 15. Qxc3 {[%emt 0:03:06]} d6 {[%emt 0:00:08]} 16. b4 {[%emt 0:05:27] White is more active.} g5 {[%emt 0:10:15]} ({Black should try} 16... f4) 17. f4 $16 {[%emt 0:09:59]} gxf4 {[%emt 0:04:24]} 18. gxf4 {[%emt 0:00:41]} e4 {[%emt 0:00:01]} 19. Qxf6 {[%emt 0:03:11]} Rxf6 {[%emt 0:00:02]} 20. e3 {[%emt 0:02:20]} Bc8 {[%emt 0:01:49][%cal Bb7c8,Bc8d7,Bd7e8][%mdl 32]} 21. Kf2 {[%emt 0:04:08]} Bd7 {[%emt 0:02:30]} 22. Rg1 {[%emt 0:01:23]} Kh8 {[%emt 0:03:19]} 23. Bf1 {[%emt 0:02:50]} Be8 {[%emt 0:06:29]} 24. Be2 {[%emt 0:03:11]} (24. Rg5 $18) 24... Rg6 {[%emt 0:01:42]} (24... Rh6 $16 {is a better defense.}) 25. h4 {[%emt 0:03:00]} Rxg1 {[%emt 0:00:26]} 26. Rxg1 {[%emt 0:00:50]} Bd7 {[%emt 0:00:29]} 27. Bh5 {[%emt 0:03:28][%cal Be2h5,Bh5g6,Bg6f7][%mdl 32]} h6 $2 {[%emt 0:00:19] [#]} (27... Rg8 {keeps fighting.} 28. Rxg8+ (28. Nxa7 Rxg1 29. Kxg1 Nb8 $18) 28... Kxg8 29. Nxa7 Nb8) 28. Bg6 {[%emt 0:01:56]} Rg8 {[%emt 0:00:29]} 29. Nxa7 {[%emt 0:01:21]} Ra8 {[%emt 0:00:31]} 30. Nb5 {[%emt 0:00:21]} Nb8 {[%emt 0:00:13]} 31. Bf7 {[%emt 0:01:19] Black did not feel at home in the position after the opening.   Weighted Error Value: White=0.13 (very precise) /Black=0.40.  Mistake:       	White=1     	Black=3      Inaccurate:     	---       	Black=2      OK:         	White=8     	Black=2      Best:        	White=1     	---} 1-0

[Event "III Menorca Open-A 2024"]
[Site "Ciutadella Menorca"]
[Date "2024.04.03"]
[Round "2.22"]
[White "Meneses Arenas, Mikel"]
[Black "Cramling Bellon, Anna"]
[Result "0-1"]
[ECO "D02"]
[WhiteElo "1851"]
[BlackElo "2115"]
[Annotator "RC"]
[PlyCount "93"]
[EventDate "2024.04.02"]
[EventType "swiss"]
[EventCountry "ESP"]
[SourceTitle "playchess.com"]
[Source "ChessBase"]
[SourceQuality "1"]
[TimeControl "5400+30"]

1. d4 {[%emt 0:00:03]} d5 {[%emt 0:01:30]} 2. Bf4 {[%emt 0:00:38]} Nf6 {[%emt 0:01:22]} 3. e3 {[%emt 0:00:49]} c5 {[%emt 0:00:47]} 4. c3 {[%emt 0:04:50]} Nc6 {[%emt 0:00:16]} 5. Nf3 {[%emt 0:01:41]} Qb6 {[%emt 0:03:41]} 6. Qb3 {[%emt 0:07:49]} c4 {[%emt 0:00:36]} 7. Qxb6 {[%emt 0:08:20]} axb6 {[%emt 0:00:05]} 8. Nbd2 {[%emt 0:02:09]} b5 {[%emt 0:01:47]} 9. Be2 {[%emt 0:03:45]} b4 {[%emt 0:17:35]} 10. O-O {[%emt 0:06:58]} h6 {[%emt 0:10:16]} 11. e4 {[%emt 0:02:52]} bxc3 {[%emt 0:13:18]} 12. bxc3 {[%emt 0:00:38]} dxe4 {[%emt 0:16:13]} 13. Ne5 {[%emt 0:00:47]} Nd5 {[%emt 0:01:01]} 14. Bg3 {[%emt 0:02:04]} Nxe5 {[%emt 0:01:49]} 15. Bxe5 {[%emt 0:05:56]} b5 {[%emt 0:02:15]} 16. Nxe4 {[%emt 0:03:11]} f6 {[%emt 0:07:10]} 17. Bg3 {[%emt 0:00:54]} f5 {[%emt 0:03:00]} 18. Nc5 {[%emt 0:13:29]} e6 {[%emt 0:00:06]} 19. Be5 {[%emt 0:02:37]} Ra3 {[%emt 0:05:40]} 20. Bh5+ {[%emt 0:09:46]} Kd8 {[%emt 0:00:21]} 21. Rfb1 {[%emt 0:08:24]} Nxc3 {[%emt 0:01:23]} 22. Rb2 {[%emt 0:00:18]} Bd7 {[%emt 0:05:05]} 23. Bf7 {[%emt 0:08:57]} Ke7 {[%emt 0:04:02]} 24. Bh5 {[%emt 0:00:36]} Bc6 {[%emt 0:01:06]} 25. Rc1 {[%emt 0:02:25]} Nd5 {[%emt 0:00:51]} 26. Bf3 {[%emt 0:01:53]} Rg8 {[%emt 0:00:37]} 27. Bxd5 {[%emt 0:01:23]} Bxd5 {[%emt 0:00:43]} 28. Rxb5 {[%emt 0:00:35]} Rxa2 {[%emt 0:00:06]} 29. Rb8 {[%emt 0:00:32]} Kf7 {[%emt 0:00:40]} 30. h3 {[%emt 0:00:37]} Be7 {[%emt 0:00:45]} 31. Rb6 {[%emt 0:00:23]} Rc8 {[%emt 0:00:20]} 32. Nb7 {[%emt 0:00:21]} c3 {[%emt 0:00:33]} 33. Nd6+ {[%emt 0:00:17]} Bxd6 {[%emt 0:00:05]} 34. Rxd6 {[%emt 0:00:13]} Ra7 {[%emt 0:01:50]} 35. Rb6 {[%emt 0:00:46]} c2 {[%emt 0:00:16]} 36. Rb2 {[%emt 0:00:25]} Ra2 {[%emt 0:00:15]} 37. Rxa2 {[%emt 0:00:39]} Bxa2 {[%emt 0:00:01]} 38. Kf1 {[%emt 0:00:11]} g5 {[%emt 0:01:13]} 39. g3 {[%emt 0:00:45]} Kg6 {[%emt 0:00:49]} 40. Ke1 {[%emt 0:00:24]} Bb1 {[%emt 0:00:26]} 41. Kd2 {[%emt 0:00:19]} Rd8 {[%emt 0:00:32]} 42. Kd3 {[%emt 0:00:57]} h5 {[%emt 0:00:15]} 43. h4 {[%emt 0:00:50]} Ra8 {[%emt 0:00:08]} 44. hxg5 {[%emt 0:00:32]} Kxg5 {[%emt 0:00:14]} 45. Bf4+ {[%emt 0:00:29]} Kg6 {[%emt 0:01:23]} 46. Re1 {[%emt 0:00:22]} c1=Q+ {[%emt 0:00:09]} 47. Ke2 {[%emt 0:01:11]} 0-1